Cogmind - Beta 12 @@@ ROGUE MODE // 2023.05.16 @ 10:54:29 Player: Mr Goldstein Result: Self-destructed Performance ------------- Evolutions (5) 2500 Regions Visited (9) 1800 Robots Destroyed (0) 0 Value Destroyed (0) 0 Prototype IDs (0) 0 Alien Tech Used (0) 0 Bonus (2487) 2487 TOTAL SCORE: 6787 Bonus ------- Pacifist 1987 Entered DSFs 500 Cogmind --------- Core Integrity 87/1000 Matter 300/300 Energy 100/100 System Corruption 1% Temperature Cool (0) Movement Core (50) Location -5/Factory Parts ------- > --- POWER (1) -------- (None) > --- PROPULSION (2) --- (None) > --- UTILITY (12) ----- (None) > --- WEAPON (2) ------- (None) > --- INVENTORY (5) ---- (None) Peak State ------------ > --- POWER ------------ (None) > --- PROPULSION ------- (None) > --- UTILITY ---------- Improved Light Armor Plating > --- WEAPON ----------- (None) > --- INVENTORY -------- (None) [Rating: 3] Favorites ----------- Power None Propulsion None Utility Improved Light Armor Plating Protection Improved Light Armor Plating Weapon None Build | -11 -10 -9 -9 -8 -8 -7 -6 -6 -5 ------- Run | Jun Mat Mat Min Mat Sto Fac Fac DSF Fac Slots Evolved 10 | . . 2 . 2 . 2 2 . 2 Power . | . . . . . . . . . . Propulsion . | . . . . . . . . . . Utility 10 | . . 2 . 2 . 2 2 . 2 Weapon . | . . . . . . . . . . Parts Attached 1 | . . . . . 1 . . . . Power . | . . . . . . . . . . Engine . | . . . . . . . . . . Core . | . . . . . . . . . . Reactor . | . . . . . . . . . . Propulsion . | . . . . . . . . . . Treads . | . . . . . . . . . . Leg . | . . . . . . . . . . Wheel . | . . . . . . . . . . Hover . | . . . . . . . . . . Flight . | . . . . . . . . . . Utility 1 | . . . . . 1 . . . . Device . | . . . . . . . . . . Storage . | . . . . . . . . . . Processor . | . . . . . . . . . . Hackware . | . . . . . . . . . . Protection 1 | . . . . . 1 . . . . Artifact . | . . . . . . . . . . Weapon . | . . . . . . . . . . Energy Gun . | . . . . . . . . . . Energy Cannon . | . . . . . . . . . . Ballistic Gun . | . . . . . . . . . . Ballistic Cannon . | . . . . . . . . . . Launcher . | . . . . . . . . . . Special Weapon . | . . . . . . . . . . Impact Weapon . | . . . . . . . . . . Slashing Weapon . | . . . . . . . . . . Piercing Weapon . | . . . . . . . . . . Special Melee Weapon . | . . . . . . . . . . Unidentified Prototypes . | . . . . . . . . . . Parts Lost 1 | . . . . . . . . 1 . Power . | . . . . . . . . . . Propulsion . | . . . . . . . . . . Utility 1 | . . . . . . . . 1 . Weapon . | . . . . . . . . . . Highest Loss Streak 1 | . . . . . . . . 1 . To Critical Strikes . | . . . . . . . . . . Average Slot Usage (%) 2 | . . . . . 7 7 6 4 . Protection 2 | . . . . . 7 7 6 4 . Naked Turns 299 | . 31 35 17 20 10 . . 10 176 Heaviest Build 3 | . . . . . 3 3 3 3 . Greatest Support 3 | 3 3 3 3 3 3 3 3 3 3 Greatest Overweight (x) . | . . . . . . . . . . Average Overweight (x) . | . . . . . . . . . . Largest Inventory Capacity 5 | 5 5 5 5 5 5 5 5 5 5 Average Capacity 5 | 5 5 5 5 5 5 5 5 5 5 Most Carried . | . . . . . . . . . . Average Carried . | . . . . . . . . . . Final Capacity 5 | 5 5 5 5 5 5 5 5 5 5 Final Carried . | . . . . . . . . . . Class Distribution -------------------- 100% | Mutant Dominant Class ---------------- Mutant | -10/Materials Mutant | -9/Materials Mutant | -9/Mines Mutant | -8/Materials Mutant | -8/Storage Mutant | -7/Factory Mutant | -6/Factory Mutant | -6/DSF Mutant | -5/Factory Resources | -11 -10 -9 -9 -8 -8 -7 -6 -6 -5 ----------- Run | Jun Mat Mat Min Mat Sto Fac Fac DSF Fac Matter Collected 203 | 200 . . . . . . . 3 . Remotely . | . . . . . . . . . . Salvage Created . | . . . . . . . . . . Parts . | . . . . . . . . . . Haulers Intercepted . | . . . . . . . . . . Recyclers Shooed . | . . . . . . . . . . Parts Field Recycled . | . . . . . . . . . . Retrieved Matter . | . . . . . . . . . . Parts Self-Destructed . | . . . . . . . . . . Prevented . | . . . . . . . . . . Kills | -11 -10 -9 -9 -8 -8 -7 -6 -6 -5 ------- Run | Jun Mat Mat Min Mat Sto Fac Fac DSF Fac Combat Hostiles Destroyed . | . . . . . . . . . . Classes Destroyed . | . . . . . . . . . . Best Kill Streak . | . . . . . . . . . . Combat Bots Only . | . . . . . . . . . . Max Kills in Single Turn . | . . . . . . . . . . Gunslinging . | . . . . . . . . . . Exploded . | . . . . . . . . . . Melee . | . . . . . . . . . . Uniques/NPCs Destroyed . | . . . . . . . . . . Combat | -11 -10 -9 -9 -8 -8 -7 -6 -6 -5 -------- Run | Jun Mat Mat Min Mat Sto Fac Fac DSF Fac Damage Taken 1631 | . 34 48 . 236 66 . . 334 913 Core 1444 | . 34 48 . 236 24 . . 189 913 Absorbed by Shields . | . . . . . . . . . . Core Remaining (%) 83 | 100 86 . 88 . 52 100 . 77 . Volleys Fired . | . . . . . . . . . . Largest . | . . . . . . . . . . Hottest . | . . . . . . . . . . Shots Fired . | . . . . . . . . . . Gun . | . . . . . . . . . . Cannon . | . . . . . . . . . . Launcher . | . . . . . . . . . . Special . | . . . . . . . . . . Kinetic . | . . . . . . . . . . Thermal . | . . . . . . . . . . Explosive . | . . . . . . . . . . Electromagnetic . | . . . . . . . . . . Robot Hit Streak . | . . . . . . . . . . Robot Miss Streak . | . . . . . . . . . . Penetration Max . | . . . . . . . . . . Secondary Targets . | . . . . . . . . . . Shots Hit Robots . | . . . . . . . . . . Core Hits 1 | . . . . . . . . . 1 Critical Kills . | . . . . . . . . . . Critical Parts Destroyed . | . . . . . . . . . . Critical Strikes . | . . . . . . . . . . Melee Attacks . | . . . . . . . . . . Impact . | . . . . . . . . . . Slashing . | . . . . . . . . . . Piercing . | . . . . . . . . . . Sneak Attacks . | . . . . . . . . . . Combat Hostiles . | . . . . . . . . . . Follow-up Attacks . | . . . . . . . . . . Damage Inflicted 61 | . . 2 . 6 . . . . 53 Guns . | . . . . . . . . . . Cannons . | . . . . . . . . . . Explosions . | . . . . . . . . . . Melee . | . . . . . . . . . . Ramming 61 | . . 2 . 6 . . . . 53 Kinetic . | . . . . . . . . . . Thermal . | . . . . . . . . . . Explosive . | . . . . . . . . . . Electromagnetic . | . . . . . . . . . . Impact . | . . . . . . . . . . Slashing . | . . . . . . . . . . Piercing . | . . . . . . . . . . Highest Corruption 1 | . . . . . 1 . . . 1 Average Corruption 1 | . . . . . 1 . . . 1 Corruption Purged . | . . . . . . . . . . Corruption Blocked . | . . . . . . . . . . Effects 1 | . . . . . . . . . 1 Data Loss (minor) 1 | . . . . . . . . . 1 Overload Shots . | . . . . . . . . . . Overflow Damage . | . . . . . . . . . . Projectiles . | . . . . . . . . . . Explosions . | . . . . . . . . . . Melee . | . . . . . . . . . . Knockbacks 1 | . . . . . . . . . 1 Impact 1 | . . . . . . . . . 1 Kinetic . | . . . . . . . . . . Secondary . | . . . . . . . . . . Self-Inflicted Damage 28 | . . 1 . 3 . . . . 24 Shots . | . . . . . . . . . . Rammed 15 | . . 2 . 1 . . . . 12 Targets Rammed 15 | . . 2 . 1 . . . . 12 Kicked . | . . . . . . . . . . Crushed . | . . . . . . . . . . Highest Temperature . | . . . . . . . . . . Average Temperature . | . . . . . . . . . . Received Heat Transfer 270 | . 18 18 . 63 9 . . . 162 Siege Activations . | . . . . . . . . . . Robots Corrupted . | . . . . . . . . . . Combat Hostiles . | . . . . . . . . . . Parts Fried . | . . . . . . . . . . Impact Corruptions . | . . . . . . . . . . Robots Melted . | . . . . . . . . . . Combat Hostiles . | . . . . . . . . . . Parts Melted . | . . . . . . . . . . Heat Transferred . | . . . . . . . . . . Parts Sabotaged . | . . . . . . . . . . Parts Stolen . | . . . . . . . . . . Parts Stripped . | . . . . . . . . . . Power Chain Reactions . | . . . . . . . . . . Missiles Intercepted . | . . . . . . . . . . Alert | -11 -10 -9 -9 -8 -8 -7 -6 -6 -5 ------- Run | Jun Mat Mat Min Mat Sto Fac Fac DSF Fac Peak Influence 334 | . 15 5 1 . 85 56 27 48 334 Initial 27 | . . 5 1 . . 27 27 18 19 Average 67 | . 12 5 1 . 26 50 27 26 140 Maximum Alert Level 1 | . . . . . . . . . 1 Low Security (%) 92 | 100 100 100 100 100 100 100 100 100 80 Level 1 7 | . . . . . . . . . 19 Level 2 . | . . . . . . . . . . Level 3 . | . . . . . . . . . . Level 4 . | . . . . . . . . . . Level 5 . | . . . . . . . . . . High Security . | . . . . . . . . . . Max Security . | . . . . . . . . . . Squads Dispatched 7 | . 1 . . 1 3 . . 1 1 Investigation . | . . . . . . . . . . Extermination . | . . . . . . . . . . Reinforcement 5 | . 1 . . 1 1 . . 1 1 Assault 2 | . . . . . 2 . . . . Garrison . | . . . . . . . . . . Intercept . | . . . . . . . . . . Searches Triggered . | . . . . . . . . . . Construction Impeded 1 | . . . . 1 . . . . . Haulers Reinforced . | . . . . . . . . . . Active Scanning Responses . | . . . . . . . . . . Cargo Convoy Interrupts . | . . . . . . . . . . Stealth | -11 -10 -9 -9 -8 -8 -7 -6 -6 -5 --------- Run | Jun Mat Mat Min Mat Sto Fac Fac DSF Fac Distress Signals 4 | . . 2 . . 1 1 . . . Communications Jammed . | . . . . . . . . . . Distress Signals . | . . . . . . . . . . Times Spotted 60 | . 3 11 . 6 10 1 . 5 24 Peak Tracking Total 16 | . 2 16 . 6 9 4 . 4 11 Tactical Retreats 6 | . . . . . . . . 1 5 Traps | -11 -10 -9 -9 -8 -8 -7 -6 -6 -5 ------- Run | Jun Mat Mat Min Mat Sto Fac Fac DSF Fac Traps Triggered 1 | . . . . . 1 . . . . Indirectly . | . . . . . . . . . . Trap Hack Attempts . | . . . . . . . . . . Triggered . | . . . . . . . . . . Disarmed . | . . . . . . . . . . Reprogrammed . | . . . . . . . . . . Reused . | . . . . . . . . . . Traps Extracted . | . . . . . . . . . . Installed . | . . . . . . . . . . Triggered . | . . . . . . . . . . Machines | -11 -10 -9 -9 -8 -8 -7 -6 -6 -5 ---------- Run | Jun Mat Mat Min Mat Sto Fac Fac DSF Fac Machines Disabled . | . . . . . . . . . . Max in Single Turn . | . . . . . . . . . . Machines Repaired . | . . . . . . . . . . Machines Sabotaged . | . . . . . . . . . . Overloaded Fab Kills . | . . . . . . . . . . Hacking | -11 -10 -9 -9 -8 -8 -7 -6 -6 -5 --------- Run | Jun Mat Mat Min Mat Sto Fac Fac DSF Fac Machines Accessed 3 | . . . . . . 1 2 . . Terminals 3 | . . . . . . 1 2 . . Fabricators . | . . . . . . . . . . Repair Stations . | . . . . . . . . . . Recycling Units . | . . . . . . . . . . Scanalyzers . | . . . . . . . . . . Garrison Access . | . . . . . . . . . . Total Hacks 3 | . . . . . . 1 2 . . Successful 3 | . . . . . . 1 2 . . Failed . | . . . . . . . . . . Catastrophic . | . . . . . . . . . . Database Lockouts . | . . . . . . . . . . Manual 2 | . . . . . . 1 1 . . Terminals 3 | . . . . . . 1 2 . . Fabricators . | . . . . . . . . . . Repair Stations . | . . . . . . . . . . Recycling Units . | . . . . . . . . . . Scanalyzers . | . . . . . . . . . . Garrison Access . | . . . . . . . . . . Terminal Hacks 2 | . . . . . . . 2 . . Open DSF 1 | . . . . . . . 1 . . Terminal Index 1 | . . . . . . . 1 . . Fabricator Hacks . | . . . . . . . . . . Repair Station Hacks . | . . . . . . . . . . Recycling Unit Hacks . | . . . . . . . . . . Scanalyzer . | . . . . . . . . . . Garrison Access Hacks . | . . . . . . . . . . Unauthorized Hacks 1 | . . . . . . 1 . . . Terminals 1 | . . . . . . 1 . . . Botnet 1 | . . . . . . 1 . . . Fabricators . | . . . . . . . . . . Repair Stations . | . . . . . . . . . . Recycling Units . | . . . . . . . . . . Scanalyzers . | . . . . . . . . . . Garrison Access . | . . . . . . . . . . Data Cores Recovered . | . . . . . . . . . . Used . | . . . . . . . . . . Hacking Detections 1 | . . . . . . 1 . . . Full Trace Events . | . . . . . . . . . . Feedback Events . | . . . . . . . . . . Feedback Blocked . | . . . . . . . . . . Robot Schematics Acquired . | . . . . . . . . . . Robots Built . | . . . . . . . . . . Authchips . | . . . . . . . . . . Time . | . . . . . . . . . . Total Robot Build Rating . | . . . . . . . . . . Part Schematics Acquired . | . . . . . . . . . . Parts Built . | . . . . . . . . . . Authchips . | . . . . . . . . . . Time . | . . . . . . . . . . Total Part Build Rating . | . . . . . . . . . . Parts Repaired . | . . . . . . . . . . Time . | . . . . . . . . . . Parts Recycled . | . . . . . . . . . . Recycled Matter . | . . . . . . . . . . Retrieved Matter . | . . . . . . . . . . Retrieved Components . | . . . . . . . . . . Parts Scanalyzed . | . . . . . . . . . . Part Schematics Acquired . | . . . . . . . . . . Parts Damaged . | . . . . . . . . . . Bothacking | -11 -10 -9 -9 -8 -8 -7 -6 -6 -5 ------------ Run | Jun Mat Mat Min Mat Sto Fac Fac DSF Fac Used RIF Installer . | . . . . . . . . . . Robots Hacked . | . . . . . . . . . . Non-combat . | . . . . . . . . . . Combat . | . . . . . . . . . . Robot Hacks Applied . | . . . . . . . . . . Relay Couplers Released . | . . . . . . . . . . Fabnet Peak Effective % . | . . . . . . . . . . Robots Rewired . | . . . . . . . . . . Allies Hacked . | . . . . . . . . . . Hacks Repelled . | . . . . . . . . . . Allies | -11 -10 -9 -9 -8 -8 -7 -6 -6 -5 -------- Run | Jun Mat Mat Min Mat Sto Fac Fac DSF Fac Total Allies 2 | . . . . . 2 . . . . Largest Group 2 | . . . . . 2 . . . . Highest-Rated Group 62 | . . . . . 62 . . . . Highest-Rated Ally 31 | . . . . . 31 . . . . Total Orders . | . . . . . . . . . . Ally Attacks 15 | . . . . . 15 . . . . Total Damage 275 | . . . . . 275 . . . . Kills 2 | . . . . . 2 . . . . Allies Corrupted . | . . . . . . . . . . Allies Melted . | . . . . . . . . . . Intel | -11 -10 -9 -9 -8 -8 -7 -6 -6 -5 ------- Run | Jun Mat Mat Min Mat Sto Fac Fac DSF Fac Robot Analysis Total . | . . . . . . . . . . Derelict Logs Recovered . | . . . . . . . . . . Drone Launches . | . . . . . . . . . . Drone Recoveries . | . . . . . . . . . . Exploration | -11 -10 -9 -9 -8 -8 -7 -6 -6 -5 ------------- Run | Jun Mat Mat Min Mat Sto Fac Fac DSF Fac Turns Passed 441 | 10 31 35 17 20 60 23 25 44 176 Spaces Moved 841 | 20 62 65 33 38 116 46 49 86 326 Core 841 | 20 62 65 33 38 116 46 49 86 326 Treads . | . . . . . . . . . . Legs . | . . . . . . . . . . Wheels . | . . . . . . . . . . Hover . | . . . . . . . . . . Flight . | . . . . . . . . . . Fastest Speed 50 | 50 50 50 50 50 50 50 50 50 50 Average Speed 50 | 50 50 50 50 50 50 50 50 50 50 Slowest Speed 50 | 50 50 50 50 50 50 50 50 50 50 Overloaded Moves . | . . . . . . . . . . Propulsion Burnouts . | . . . . . . . . . . Robots Hopped . | . . . . . . . . . . Cave-ins Triggered . | . . . . . . . . . . Exploration Rate (%) 19 | 3 23 11 15 9 30 2 1 85 16 Regions Visited 9 Branch Regions 2 Pre-discovered Areas . | . . . . . . . . . . Known Exits Taken 1 | . . . . . . . 1 . . Unknown Exits Taken 7 | 1 1 1 1 1 1 1 . . . Scrap Searched . | . . . . . . . . . . Spaces Dug . | . . . . . . . . . . Terrain Destroyed . | . . . . . . . . . . Melee . | . . . . . . . . . . Projectile . | . . . . . . . . . . AOE . | . . . . . . . . . . Terrain Rammed . | . . . . . . . . . . Walls Destroyed . | . . . . . . . . . . Machines Disabled . | . . . . . . . . . . Actions | -11 -10 -9 -9 -8 -8 -7 -6 -6 -5 --------- Run | Jun Mat Mat Min Mat Sto Fac Fac DSF Fac Total 849 | 19 61 66 32 38 116 45 48 86 338 Wait . | . . . . . . . . . . Move 832 | 19 61 64 32 37 115 45 48 85 326 Hop . | . . . . . . . . . . Pick Up . | . . . . . . . . . . Fast Attach 1 | . . . . . 1 . . . . Attach . | . . . . . . . . . . Detach . | . . . . . . . . . . Swap . | . . . . . . . . . . Drop . | . . . . . . . . . . Fire . | . . . . . . . . . . Melee . | . . . . . . . . . . Ram 15 | . . 2 . 1 . . . . 12 Kick . | . . . . . . . . . . Crush . | . . . . . . . . . . Escape Stasis . | . . . . . . . . . . Rewire 1 | . . . . . . . . 1 . Trap . | . . . . . . . . . . Miscellaneous . | . . . . . . . . . . Route ------- -11/Junkyard -10/Materials -9/Materials (discovered 2 exits: [*Min x2]) -9/Mines -8/Materials -8/Storage -7/Factory -6/Factory -6/DSF -5/Factory History --------- Turn | Location | Event 6 | -11/Junkyard | Discovered new exit (range 12) 11 | -11/Junkyard | Entered Materials 37 | -10/Materials | Discovered new exit (range 10) 42 | -10/Materials | Entered another Materials area 42 | -9/Materials | Evolved 2 slots: Utility x2 69 | -9/Materials | Discovered new exit (range 7) 72 | -9/Materials | Discovered new exit (range 10) 77 | -9/Materials | Entered Mines 88 | -9/Mines | Discovered new exit (range 12) 94 | -9/Mines | Entered Materials 94 | -8/Materials | Evolved 2 slots: Utility x2 105 | -8/Materials | Discovered new exit (range 16) 114 | -8/Materials | Entered Storage 121 | -8/Storage | Met a pair of Derelict thieves 169 | -8/Storage | Discovered new exit (range 10) 174 | -8/Storage | Entered Factory 174 | -7/Factory | Evolved 2 slots: Utility x2 190 | -7/Factory | Discovered new exit (range 16) 197 | -7/Factory | Entered another Factory area 197 | -6/Factory | Evolved 2 slots: Utility x2 222 | -6/Factory | Identified exit to DSF 222 | -6/Factory | Entered DSF 246 | -6/DSF | Additional patrols routed to DSF 258 | -6/DSF | Discovered new exit (range 16) 266 | -6/DSF | Entered Factory 266 | -5/Factory | Evolved 2 slots: Utility x2 316 | -5/Factory | Build established: Mutant 378 | -5/Factory | Core integrity fell below 50% 419 | -5/Factory | Core integrity fell below 20% 442 | -5/Factory | Self-destructed Last Messages --------------- 00373_ Slammed into G-50 Soldier. 00374_ Destabilizing: System corrupted (+1). 00374_ Critical hit (Burn: +37). 00375_ Slammed into G-67 Veteran. 00376_ Slammed into G-50 Soldier. 00377_ Critical hit (Burn: +37). 00378_ Slammed into G-50 Soldier. 00378_ G-50 Soldier knocked back. 00379_ Slammed into G-50 Soldier. 00382_ Slammed into W-25 Informer. 00386_ System corrupted: Component data lost. 00386_ K-01 Serf latches onto B-60 Warrior. 00386_ K-01 Serf pushes B-60 Warrior. 00387_ K-01 Serf cleans the Power Conduit. 00388_ K-01 Serf latches onto B-60 Warrior. 00388_ K-01 Serf pushes B-60 Warrior. 00391_ K-01 Serf cleans the Power Conduit. 00416_ Penetrated by Slug. 00418_ Knocked back. 00423_ Slammed into G-50 Soldier. Map ----- +----------------------------------------------------+ | ????????????###########/##### | | ????????????# | | ????????????# | | ????????????# | | ????????????# | | ????????????# % | | ????????????# #####/#""## | | ????????????# # #? | | ????????????# # """ #? | | ????????????# # """ #? | | ????????????+ # """ #? | | ????????????# # #? | | ????????????# # """ #? | | ????????????## ## """ #? | | ?????????????# ## """ #? | | ?????????????# #?? #? | | ?????????????# #?#########? | | ???#####??#??# #? ?#?? | | ???# ? ???# # #?? | | ???# """ """ # # #?? | | ???# """ """ + + #?? | | ???# """ """ # # ! #?? | | ???# "" "" # # #?? | | ???#! "" "" # #? ?#?? | | ???# # #?? #?? | | ???#@ # +??? #?? | | ???##+######## #???######?? | | ????# #??????????? | | ????###########+##??????????? | | ????????????????????????????? | | ????????????????????????????? | | ????????????????????????????? | | ????????????????????????????? | | ????????????????????????????? | | ????????????????????????????? | | ????????????????????????????? | | | | | | | | | | | | | | | | | | | | | | | | | | | | | +----------------------------------------------------+ Best States ------------- Heat Dissipation 40 Energy Generation 5 Energy Capacity 100 Matter Stores 300 Matter Capacity 300 Sight Range 16 Terrain Scan Density 10 Armor Coverage 150 Evasion (%) 50 Item Schematics ----------------- None Robot Schematics ------------------ None Fabricated ------------ Nothing Alien Tech Used ----------------- None Achievements -------------- None Challenges ------------ None Game ------ Seed LegDisposableNanosword Manual? 0 Play Time 00:05:49 Cumulative 218.4 hours Start 2023.05.16 @ 10:50:11 End 2023.05.16 @ 10:54:29 Sessions 1 Manual Loads 0 Difficulty Rogue Special Mode None Game No. 667 Rogue 667 Adventurer 0 Explorer 0 Win Type - Total 9 Types 7/0/1/1/0/0/0/0/0 Lore% 82 Gallery% 80 Achievement% 71 Wizard Run 0 Options --------- ASCII 0 Keyboard 0 Movement Numpad Keybinds 0 Fullscreen 1 Font 16/SmallcapsGlow Map View 75x55 Tactical HUD 1 Map Filters NONE Filters NONE Steam 1 RUN: 7f650bf9-3b5b-40b1-aa56-5144673eacfd